fUSD/lending_fUSD_20250818
["ID","MTS","AMOUNT","RATE_DAILY","PERIOD"]
[380052933,1755509440766,-4548.06760809,0.00011,2]
[380052935,1755509440780,-268.67379146,0.00011,2]
[380052940,1755509440816,-585.7304004,0.00011,2]
[380053135,1755509442590,-189679.74952233,0.00011,2]
[380053151,1755509442738,-2118.43910327,0.00011,2]
[380053159,1755509442806,-11635.81889216,0.00011,2]
[380053428,1755509445443,-184.09011362,0.000109,2]
[380053430,1755509445452,-967.20788638,0.00011,2]
[380053432,1755509445463,-1348.04208834,0.00011,2]
[380053435,1755509445474,-11205.43403622,0.00011,2]
[380053437,1755509445485,-4674.0,0.00011,2]
[380053439,1755509445496,-2490.99999,0.00011,2]
[380053441,1755509445506,-1602.57946747,0.00011,2]
[380053443,1755509445518,-3807.10688827,0.00011,2]
[380053448,1755509445554,-1865.57676771,0.00011,2]
[380053451,1755509445565,-450.85402016,0.00011,2]
[380053453,1755509445579,-726.52366915,0.00011,2]
[380053455,1755509445590,-572.65026246,0.00011,2]
[380053458,1755509445612,-2393.0637689,0.00011,2]
[380053465,1755509445667,-662.53723803,0.00011,2]
[380053757,1755509466292,65507.46686744,9e-05,2]
[380053760,1755509983046,-194.27062948,9.441e-05,2]
[380053761,1755509985018,-157.35,9.441e-05,2]
[380053762,1755509987298,-174.03692798,9.441e-05,2]
[380053763,1755509992278,-379.19805255,9.441e-05,2]
[380053764,1755509995554,-95.14438999,9.441e-05,2]
[380053765,1755510005573,170.0,9.836e-05,7]
[380053766,1755510022946,208.55551,0.00014,29]
[380053767,1755510068494,2100.7651684,0.00024,120]
[380053769,1755510118081,282.02441157,0.00024,120]
[380053770,1755510131363,-210.84989426,9.411e-05,2]
[380053771,1755510173474,-38.85010574,9.411e-05,2]
[380053772,1755510173519,-211.44989426,9.567e-05,2]
[380053773,1755510218429,-269.71231971,9.446e-05,2]
[380053775,1755510222162,-214.63987788,9.446e-05,2]
[380053776,1755510225080,-155.36053643,9.446e-05,2]
[380053777,1755510230485,-27.74726598,9.446e-05,2]
[380053778,1755510270717,-290.59376436,9.445e-05,2]
[380053779,1755510272363,-181.98224488,9.445e-05,2]
[380053780,1755510275718,-152.45,9.445e-05,2]
[380053781,1755510277137,-300.0,9.445e-05,2]
[380053782,1755510278903,-206.25399076,9.445e-05,2]
[380053783,1755510299826,-63.89989426,9.567e-05,2]
[380053784,1755510300232,-24.65021148,9.567e-05,2]
[380053785,1755510303147,2362.53,0.00024,120]
[380053786,1755510303260,3000.0,0.00024,120]
[380053788,1755510424926,-244.5813862,9.428e-05,2]
[380053789,1755510443459,-5.4186138,9.428e-05,2]
[380053790,1755510467288,-207.42722338,9.645e-05,2]
[380053792,1755510534988,3003.0,0.00024,120]
[380053793,1755510590531,2859.76,0.00023287,120]
[380053794,1755510590769,2859.76,0.00023287,120]
[380053795,1755510591026,2859.76,0.00023287,120]
[380053796,1755510591631,2859.76,0.00023287,120]
[380053797,1755510591725,2859.76,0.00023287,120]
[380053798,1755510591949,2859.76,0.00023287,120]
[380053799,1755510592186,2859.76,0.00023287,120]
[380053800,1755510592323,2859.76,0.00023287,120]
[380053801,1755510592557,2859.76,0.00023287,120]
[380053802,1755510592817,2859.76,0.00023287,120]
[380053803,1755510593047,2859.76,0.00023287,120]
[380053804,1755510593284,2859.76,0.00023287,120]
[380053805,1755510593524,2859.76,0.00023287,120]
[380053806,1755510593779,2859.76,0.00023287,120]
[380053807,1755510594043,2859.76,0.00023287,120]
[380053808,1755510594899,2859.76,0.00023287,120]
[380053809,1755510595037,2859.76,0.00023287,120]
[380053810,1755510595147,2859.76,0.00023287,120]
[380053811,1755510595388,2859.76,0.00023287,120]
[380053812,1755510595608,2859.76,0.00023287,120]
[380053813,1755510595856,2859.76,0.00023287,120]
[380053814,1755510596082,2859.76,0.00023287,120]
[380053815,1755510596347,2859.76,0.00023287,120]
[380053816,1755510596586,2859.92754848,0.00023287,120]
[380053817,1755510603824,234.37904898,0.00024,120]
[380053818,1755510617347,-150.0,9.596e-05,2]
[380053828,1755510631736,-506.86443752,9.596e-05,2]
[380053829,1755510631750,-574.85,9.596e-05,2]
[380053830,1755510631765,-154.71712748,9.596e-05,2]
[380053831,1755510631777,-347.11978885,9.721e-05,2]
[380053832,1755510631789,-152.45,9.721e-05,2]
[380053833,1755510631800,-500.0,9.721e-05,2]
[380053834,1755510631812,-226.81788578,9.721e-05,2]
[380053835,1755510631823,-167.1,9.723e-05,2]
[380053836,1755510631835,-218.53538029,9.887e-05,2]
[380053837,1755510631847,-150.0,9.888e-05,2]
[380053838,1755510631859,-150.0,9.888e-05,2]
[380053839,1755510631871,-150.0,9.888e-05,2]
[380053840,1755510631882,-150.0,9.888e-05,2]
[380053841,1755510631893,-150.0,9.888e-05,2]
[380053842,1755510631905,-182.0580744,9.888e-05,2]
[380053843,1755510631917,-150.0,9.888e-05,2]
[380053844,1755510631932,-150.56440366,9.888e-05,2]
[380053845,1755510631943,-151.98595259,9.888e-05,2]
[380053846,1755510631955,-150.0,9.888e-05,2]
[380053847,1755510631968,-150.0,9.888e-05,2]
[380053848,1755510631980,-276.03918311,9.888e-05,2]
[380053849,1755510631991,-185.57,9.957e-05,2]
[380053850,1755510632004,-466.51,0.0001007,2]
[380053851,1755510632016,-12.64974256,0.00010076,2]
[380053858,1755510632743,-137.35025744,0.00010076,2]
[380053859,1755510633022,-500.0,0.00010077,2]
[380053860,1755510633064,-500.0,0.00010077,2]
[380053861,1755510633094,-500.0,0.00010077,2]
[380053862,1755510633112,-500.0,0.00010077,2]
[380053863,1755510633121,-500.0,0.00010077,2]
[380053864,1755510633130,-500.0,0.00010077,2]
[380053865,1755510633140,-146.67304024,0.00010077,2]
[380053866,1755510636312,-353.32695976,0.00010077,2]
[380053867,1755510636324,-500.0,0.00010077,2]
[380053868,1755510636334,-305.26646784,0.00010077,2]
[380053869,1755510636363,-194.73353216,0.00010077,2]
[380053870,1755510636373,-151.0,0.00010077,2]
[380053871,1755510636382,-256.61,0.00010079,2]
[380053872,1755510636391,-64.12848468,0.00010084,2]
[380053873,1755510636445,-192.48151532,0.00010084,2]
[380053874,1755510636456,-256.61,0.00010089,2]
[380053875,1755510636465,-256.61,0.00010094,2]
[380053876,1755510636477,-256.61,0.000101,2]
[380053877,1755510636486,-482.90514777,0.00010104,2]
[380053878,1755510636495,-256.61,0.00010105,2]
[380053879,1755510636505,-256.61,0.0001011,2]
[380053880,1755510636515,-338.12,0.00010113,2]
[380053881,1755510636526,-256.61,0.00010116,2]
[380053882,1755510636535,-256.61,0.00010121,2]
[380053883,1755510636544,-256.61,0.00010126,2]
[380053884,1755510636554,-256.61,0.00010132,2]
[380053885,1755510636563,-500.0,0.00010132,2]
[380053886,1755510636572,-256.61,0.00010137,2]
[380053887,1755510636582,-256.61,0.00010142,2]
[380053888,1755510636591,-256.61,0.00010148,2]
[380053889,1755510636600,-256.61,0.00010153,2]
[380053890,1755510636609,-256.61,0.00010158,2]
[380053891,1755510636618,-256.61,0.00010164,2]
[380053892,1755510636627,-256.61,0.00010169,2]
[380053893,1755510636636,-256.61,0.00010174,2]
[380053894,1755510636646,-177.48,0.00010178,2]
[380053895,1755510636655,-256.61,0.0001018,2]
[380053896,1755510636665,-472.96621773,0.00010187,2]
[380053897,1755510636689,-27.03378227,0.00010187,2]
[380053898,1755510636698,-500.0,0.00010242,2]
[380053899,1755510636707,-239.17,0.00010247,2]
[380053900,1755510636717,-150.0,0.00010254,2]
[380053901,1755510636726,-150.0,0.00010254,2]
[380053902,1755510636735,-500.0,0.00010297,2]
[380053903,1755510636745,-500.0,0.00010352,2]
[380053904,1755510636754,-500.0,0.00010407,2]
[380053905,1755510636763,-432.77616773,0.00010462,2]
[380053906,1755510636776,-67.22383227,0.00010462,2]
[380053907,1755510636785,-500.0,0.00010517,2]
[380053908,1755510636794,-110.32468156,0.00010521,2]
[380053909,1755510636805,-389.67531844,0.00010521,2]
[380053910,1755510636814,-300.0,0.00010555,2]
[380053911,1755510636824,-500.0,0.00010572,2]
[380053912,1755510636833,-300.0,0.00010609,2]
[380053913,1755510636842,-300.0,0.00010609,2]
[380053914,1755510636851,-150.0,0.0001062,2]
[380053915,1755510636859,-150.0,0.0001062,2]
[380053916,1755510636868,-1000.0,0.00010621,2]
[380053917,1755510636877,-127.71952951,0.00010625,2]
[380053918,1755510636913,-123.52666354,0.00010625,2]
[380053919,1755510636927,-322.82620164,0.00010627,2]
[380053920,1755510636938,-177.17379836,0.00010627,2]
[380053921,1755510636947,-162.71,0.00010643,2]
[380053922,1755510636956,-156.58,0.00010723,2]
[380053923,1755510636967,-632.18333646,0.00010899,2]
[380053924,1755510636979,-603.81869961,0.00010899,2]
[380053925,1755510637337,178.0,0.00023853,120]
[380053961,1755510640794,-237.4971554,9.595e-05,2]
[380053962,1755510640803,-304.96893572,9.595e-05,2]
[380053963,1755510640835,-104.47046293,9.595e-05,2]
[380053964,1755510640845,-1263.99796393,0.00010899,2]
[380053965,1755510640855,-384.27702542,0.000109,2]
[380053966,1755510640864,-306.48634391,0.000109,2]
[380053967,1755510640873,-920.97477614,0.00010959,2]
[380053968,1755510640883,-500.0,0.00010973,2]
[380053969,1755510640892,-500.0,0.00010973,2]
[380053970,1755510640901,-500.0,0.00010973,2]
[380053971,1755510640911,-500.0,0.00010973,2]
[380053972,1755510640922,-500.0,0.00010973,2]
[380053973,1755510640932,-500.0,0.00010973,2]
[380053974,1755510641336,-500.0,0.00010973,2]
[380053975,1755510641371,-500.0,0.00010973,2]
[380053976,1755510641381,-533.613245,0.00010973,2]
[380053977,1755510641390,-500.0,0.00010973,2]
[380053978,1755510641400,-500.0,0.00010973,2]
[380053979,1755510641410,-629.90530145,0.00010973,2]
[380053980,1755510641419,-198.68158883,0.00010973,2]
[380053981,1755510641429,-347.10055115,0.00010973,2]
[380053982,1755510641438,-150.0,0.00010986,2]
[380053983,1755510641447,-150.0,0.00010986,2]
[380053984,1755510641456,-150.0,0.00010986,2]
[380053985,1755510641466,-500.0,0.00010989,2]
[380053986,1755510641475,-2743.98288531,0.00010998,2]
[380053987,1755510641484,-2000.0,0.00010999,2]
[380053988,1755510641493,-2000.0,0.00010999,2]
[380053989,1755510641502,-1984.8993,0.00010999,2]
[380053990,1755510641511,-2000.0,0.00010999,2]
[380053991,1755510641520,-1315.37,0.00010999,2]
[380053992,1755510641530,-20055.36613648,0.00011,2]
[380053993,1755510641542,-1614.86432153,0.00011,2]
[380053994,1755510641562,-6465821.67217493,0.00011,2]
[380053995,1755510641571,-11730660.23009737,0.00011,2]
[380053996,1755510641583,-1010.43986575,0.00011,2]
[380053997,1755510641674,-3216.1498192,0.00011,2]
[380054008,1755510642833,-5759.5,0.00011,2]
[380054009,1755510642861,-2665.44173849,0.00011,2]
[380054010,1755510642873,-1728.85,0.00011,2]
[380054011,1755510642906,-11490.0,0.00011,2]
[380054012,1755510642943,-10715.11741696,0.00011,2]
[380054013,1755510642958,-8542.713982,0.00011,2]
[380054014,1755510643003,-1338.40206117,0.00011,2]
[380054016,1755510643536,-48.54664573,0.00011,2]
[380054017,1755510643548,-5914.20967275,0.00011,2]
[380054018,1755510643598,-115189.43614608,0.00011,2]
[380054019,1755510643663,-1609.15261972,0.00011,2]
[380054020,1755510643672,-4341.42345737,0.00011,2]
[380054024,1755510646106,-18882.433552,0.00011,2]
[380054025,1755510646133,-374356.49007671,0.00011,2]
[380054026,1755510646167,-92510.00923172,0.00011,2]
[380054027,1755510646180,-22994.00000001,0.00011,2]
[380054028,1755510646393,-7267.19999988,0.00011,2]
[380054033,1755510648075,-28310.160384,0.00011,2]
[380054034,1755510648086,-1155.14767384,0.00011,2]
[380054035,1755510648097,-486.87840212,0.00011,2]
[380054036,1755510648745,-23205.2529666,0.00011,2]
[380054037,1755510648839,-393.13516546,0.00011,2]
[380054038,1755510648851,-1224.4999766,0.00011,2]
[380054039,1755510654802,-150.0,9.595e-05,2]
[380054040,1755510669007,-59.11949216,9.595e-05,2]
[380054041,1755510669032,-66.22587492,9.595e-05,2]
[380054042,1755510684125,-122.86080483,9.595e-05,2]
[380054043,1755510684172,-43.38720394,9.595e-05,2]
[380054044,1755510692622,517.0,9.56e-05,7]
[380054045,1755510706647,2481.48874253,0.00024,120]
[380054046,1755510709659,358.6512111,0.00024,120]
[380054047,1755510734727,-132.86270145,9.595e-05,2]
[380054048,1755510736745,-17.13729855,9.595e-05,2]
[380054049,1755510743179,500.0,9.595e-05,7]
[380054050,1755510747658,-152.45,9.595e-05,2]
[380054052,1755510761692,-160.82002071,9.594e-05,2]
[380054053,1755510769188,-23.87647065,9.594e-05,2]
[380054054,1755510769496,-102.98782668,9.594e-05,2]
[380054055,1755510811316,-212.47310399,9.594e-05,2]
[380054056,1755510818134,-105.59964442,9.594e-05,2]
[380054057,1755510818186,-196.8284309,9.594e-05,2]
[380054058,1755510825390,-3.93154504,9.594e-05,2]
[380054059,1755510825467,-264.89450647,9.594e-05,2]
[380054060,1755510832581,-166.57,9.594e-05,2]
[380054061,1755510863804,-33.69839106,9.594e-05,2]
[380054062,1755510863919,-129.62321788,9.594e-05,2]
[380054063,1755510870928,-221.81374846,9.594e-05,2]
[380054065,1755510880653,-179.23364984,9.593e-05,2]
[380054066,1755510885590,-87.83299831,9.593e-05,2]
[380054067,1755510885612,-27.67575441,9.593e-05,2]
[380054068,1755510893323,-196.0266985,9.593e-05,2]
[380054069,1755510893359,-303.9733015,9.593e-05,2]
[380054070,1755510900252,-243.75802282,9.593e-05,2]
[380054071,1755510900304,-16.45725586,9.593e-05,2]
[380054072,1755510916725,-215.25751946,9.452e-05,2]
[380054073,1755510919079,-502.82225125,9.452e-05,2]
[380054074,1755510922323,-180.70200898,9.452e-05,2]
[380054075,1755510927104,162.43247261,0.00024,120]
[380054076,1755510932976,154.0,0.00024,120]
[380054077,1755510933587,154.0,0.00024,120]
[380054078,1755510962786,-101.21822031,9.452e-05,2]
[380054079,1755510962837,-11.35983164,9.593e-05,2]
[380054080,1755510992871,170.0,9.836e-05,7]
[380054081,1755511020710,-285.58126199,9.428e-05,2]
[380054082,1755511024787,-167.49875239,9.428e-05,2]
[380054083,1755511025578,-389.88420989,9.428e-05,2]
[380054084,1755511026976,-198.17998562,9.428e-05,2]
[380054085,1755511029050,-178.53,9.428e-05,2]
[380054086,1755511032057,-241.12,9.428e-05,2]
[380054087,1755511032115,-24893.94153869,9.428e-05,2]
[380054088,1755511079264,938.50563306,0.00024,120]
[380054089,1755511083965,6526.8,0.00024,120]
[380054090,1755511146974,500.0,0.00023287,120]
[380054091,1755511147223,583.99942757,0.00023287,120]
[380054092,1755511154523,-336.2480521,9.427e-05,2]
[380054100,1755511187288,-163.7519479,9.427e-05,2]
[380054101,1755511187319,-500.0,9.427e-05,2]
[380054102,1755511187351,-292.35017759,9.427e-05,2]
[380054103,1755511187380,-500.0,9.427e-05,2]
[380054104,1755511187409,-336.72742257,9.427e-05,2]
[380054105,1755511187703,-460.0361356,9.427e-05,2]
[380054106,1755511238863,151.0,0.00024,120]
[380054107,1755511239522,-188.00364093,9.421e-05,2]
[380054110,1755511243823,154.0,0.00024,120]
[380054111,1755511247065,154.0,0.00024,120]
[380054112,1755511281508,150.0,0.00013425,120]
[380054113,1755511291275,-15.84424152,9.421e-05,2]
[380054114,1755511291302,-126.59698276,9.421e-05,2]
[380054115,1755511344270,-150.0,9.423e-05,2]
[380054118,1755511376402,-235.97351311,9.355e-05,2]
[380054119,1755511378832,-297.90648689,9.355e-05,2]
[380054120,1755511381057,-230.82196609,9.355e-05,2]
[380054121,1755511384857,-169.16365603,9.355e-05,2]
[380054122,1755511388147,-210.53664972,9.355e-05,2]
[380054123,1755511389869,-271.43468469,9.355e-05,2]
[380054124,1755511392966,-275.01931697,9.355e-05,2]
[380054125,1755511395537,-221.09143873,9.355e-05,2]
[380054126,1755511395582,-184.09011362,9.355e-05,2]
[380054127,1755511398603,-159.93510617,9.355e-05,2]
[380054128,1755511400436,-179.84231379,9.355e-05,2]
[380054129,1755511404207,-181.49825746,9.355e-05,2]
[380054130,1755511404830,17888.26667498,0.00024,120]
[380054131,1755511407830,-263.41105098,9.355e-05,2]
[380054132,1755511410333,-321.47079387,9.355e-05,2]
[380054133,1755511411556,-325.58232744,9.355e-05,2]
[380054134,1755511419277,-180.60165553,9.355e-05,2]
[380054135,1755511422996,-156.587,9.355e-05,2]
[380054136,1755511426740,-186.82431071,9.355e-05,2]
[380054137,1755511429628,-190.19972332,9.355e-05,2]
[380054138,1755511432810,-166.55309189,9.355e-05,2]
[380054139,1755511435930,-278.97944678,9.355e-05,2]
[380054140,1755511438488,-210.7485422,9.355e-05,2]
[380054141,1755511440815,-177.71031863,9.355e-05,2]
[380054142,1755511446783,-194.95724784,9.355e-05,2]
[380054143,1755511448074,-215.68844194,9.355e-05,2]
[380054144,1755511449310,-274.86953085,9.355e-05,2]
[380054145,1755511451576,-271.31344774,9.355e-05,2]
[380054146,1755511454288,-296.43730605,9.355e-05,2]
[380054147,1755511457310,688.24863048,0.00024,120]
[380054148,1755511458585,-182.80496989,9.355e-05,2]
[380054149,1755511460862,-30.76729107,9.355e-05,2]
[380054150,1755511460886,-297.7757753,9.355e-05,2]
[380054151,1755511462452,-18.3642247,9.355e-05,2]
[380054152,1755511480822,-206.31968179,9.421e-05,2]
[380054153,1755511480854,-500.0,9.421e-05,2]
[380054154,1755511480881,-500.0,9.421e-05,2]
[380054155,1755511480908,-500.0,9.421e-05,2]
[380054156,1755511480938,-500.0,9.421e-05,2]
[380054157,1755511480968,-500.0,9.421e-05,2]
[380054158,1755511481153,-120.94545507,9.421e-05,2]
[380054160,1755511490911,-394.03534793,9.355e-05,2]
[380054161,1755511492650,-156.73221651,9.355e-05,2]
[380054162,1755511520646,151.0,0.00024,120]
[380054164,1755511527858,1218.0,0.00024,120]
[380054165,1755511528036,-250.0,9.348e-05,2]
[380054166,1755511528079,-871.75667185,9.355e-05,2]
[380054167,1755511528460,1218.0,0.00024,120]
[380054168,1755511529046,1218.0,0.00024,120]
[380054169,1755511569735,-249.22,9.3e-05,2]
[380054170,1755511622879,-50.78,9.3e-05,2]
[380054171,1755511622919,-113.3820571,9.3e-05,2]
[380054172,1755511638967,-186.6179429,9.3e-05,2]
[380054173,1755511638991,-45.6897096,9.3e-05,2]
[380054174,1755511671380,-2.64726288,9.1e-05,2]
[380054175,1755511672406,-147.35273712,9.1e-05,2]
[380054176,1755511695564,200.0,0.00011,5]
[380054177,1755511717824,-67.682348,9.253e-05,2]
[380054178,1755511718018,-164.625304,9.253e-05,2]
[380054179,1755511725560,-500.0,9.299e-05,2]
[380054180,1755511725585,-500.0,9.299e-05,2]
[380054181,1755511725611,-166.03940083,9.299e-05,2]
[380054182,1755511725636,-245.16507348,9.299e-05,2]
[380054183,1755511725669,-574.42026373,9.299e-05,2]
[380054184,1755511725697,-500.0,9.299e-05,2]
[380054185,1755511725724,-500.0,9.299e-05,2]
[380054186,1755511725751,-500.0,9.299e-05,2]
[380054187,1755511725780,-500.0,9.299e-05,2]
[380054188,1755511725807,-607.71089181,9.299e-05,2]
[380054189,1755511725836,-500.0,9.299e-05,2]
[380054190,1755511725865,-254.3102904,9.3e-05,2]
[380054191,1755511725897,-300.0,9.3e-05,2]
[380054192,1755511728449,-276.00325281,9.327e-05,2]
[380054193,1755511732169,289.74565464,9.299e-05,2]
[380054200,1755511758598,-23.99674719,9.327e-05,2]
[380054201,1755511758624,-250.0,9.327e-05,2]
[380054202,1755511758649,-1581.5,9.346e-05,2]
[380054203,1755511758675,-577.47576371,9.355e-05,2]
[380054204,1755511758700,-151.0,9.355e-05,2]
[380054205,1755511758726,-300.0,9.388e-05,2]
[380054206,1755511758752,-300.0,9.409e-05,2]
[380054207,1755511758781,-1200.0,9.42e-05,2]
[380054208,1755511758821,-300.0,9.42e-05,2]
[380054209,1755511758849,-389.3936616,9.427e-05,2]
[380054210,1755511758877,-300.0,9.427e-05,2]
[380054211,1755511758903,-553.09425142,9.428e-05,2]
[380054212,1755511758930,-418.4586,9.493e-05,2]
[380054213,1755511781104,1268.36,9.382e-05,2]
[380054214,1755511820434,151.0,0.00024,120]
[380054215,1755511821045,151.0,0.00024,120]
[380054216,1755511821517,151.0,0.00024,120]
[380054217,1755511822299,151.0,0.00024,120]
[380054218,1755511822677,151.0,0.00024,120]
[380054219,1755511823217,151.0,0.00024,120]
[380054220,1755511823704,151.0,0.00024,120]
[380054221,1755511824837,151.0,0.00024,120]
[380054222,1755511825421,151.0,0.00024,120]
[380054223,1755511826440,151.0,0.00024,120]
[380054224,1755511826786,151.0,0.00024,120]
[380054225,1755511827184,151.0,0.00024,120]
[380054226,1755511827405,1218.0,0.00024,120]
[380054227,1755511830833,151.0,0.00024,120]
[380054228,1755511831307,151.0,0.00024,120]
[380054229,1755511831498,1218.0,0.00024,120]
[380054238,1755511832097,-276.003253,9.617e-05,2]
[380054239,1755511832106,-300.0,9.641e-05,2]
[380054240,1755511832116,-154.95,9.665e-05,2]
[380054241,1755511832125,-16.10927979,9.733e-05,2]
[380054242,1755511832136,-283.89072021,9.733e-05,2]
[380054243,1755511832145,-1213.58491875,9.756e-05,2]
[380054244,1755511832154,-193.36184755,9.756e-05,2]
[380054249,1755511832517,-143.63815245,9.756e-05,2]
[380054251,1755511832526,-739.0,9.802e-05,2]
[380054253,1755511832536,-300.0,9.823e-05,2]
[380054255,1755511832545,-343.0,9.844e-05,2]
[380054257,1755511832554,-300.0,9.99e-05,2]
[380054258,1755511832563,-300.0,9.99e-05,2]
[380054259,1755511832572,-150.0,9.999e-05,2]
[380054260,1755511832581,-300.0,9.999e-05,2]
[380054261,1755511832591,-1200.0,9.999e-05,2]
[380054263,1755511832600,-151.0,0.0001,2]
[380054265,1755511832609,-276.33608455,0.0001,2]
[380054267,1755511832619,-211.61029529,0.0001,2]
[380054269,1755511832628,-300.0,0.0001,2]
[380054271,1755511832637,-204.01,0.0001,2]
[380054272,1755511832646,-500.0,0.0001,2]
[380054273,1755511832655,-151.0,0.0001,2]
[380054274,1755511832664,-151.0,0.0001,2]
[380054275,1755511832673,-151.0,0.0001,2]
[380054276,1755511832682,-151.0,0.0001,2]
[380054277,1755511832691,-151.0,0.0001,2]
[380054278,1755511832700,-500.0,0.0001,2]
[380054279,1755511832709,-151.0,0.0001,2]
[380054280,1755511832718,-500.0,0.0001,2]
[380054281,1755511832727,-151.0,0.0001,2]
[380054282,1755511832736,-151.0,0.0001,2]
[380054283,1755511832745,-500.0,0.0001,2]
[380054284,1755511832755,-151.0,0.0001,2]
[380054285,1755511832764,-548.27938102,0.0001,2]
[380054286,1755511832773,-151.0,0.0001,2]
[380054287,1755511832782,-160.55275737,0.0001,2]
[380054288,1755511832792,-151.0,0.0001,2]
[380054289,1755511832801,-610.01,0.00010001,2]
[380054290,1755511832810,-610.01,0.00010006,2]
[380054291,1755511832820,-610.7,0.00010011,2]
[380054292,1755511832829,-610.01,0.00010012,2]
[380054293,1755511832838,-610.01,0.00010017,2]
[380054294,1755511832848,-610.01,0.00010022,2]
[380054295,1755511832857,-610.01,0.00010027,2]
[380054296,1755511832866,-610.01,0.00010033,2]
[380054297,1755511832876,-610.01,0.00010038,2]
[380054298,1755511832886,-610.01,0.00010043,2]
[380054299,1755511832896,-610.01,0.00010048,2]
[380054300,1755511832905,-610.01,0.00010054,2]
[380054301,1755511832915,-500.0,0.00010055,2]
[380054302,1755511832924,-610.01,0.00010059,2]
[380054303,1755511832934,-610.01,0.00010064,2]
[380054304,1755511832943,-610.01,0.0001007,2]
[380054305,1755511832952,-610.01,0.00010075,2]
[380054306,1755511832962,-610.01,0.0001008,2]
[380054307,1755511832971,-704.0,0.00010084,2]
[380054308,1755511832981,-610.01,0.00010085,2]
[380054309,1755511832990,-610.01,0.00010091,2]
[380054310,1755511832999,-610.01,0.00010096,2]
[380054311,1755511833009,-610.01,0.00010101,2]
[380054312,1755511833018,-500.0,0.0001011,2]
[380054313,1755511833028,-351.0,0.00010141,2]
[380054314,1755511833037,-500.0,0.00010165,2]
[380054315,1755511833047,-500.0,0.0001022,2]
[380054316,1755511833058,-300.0,0.0001023,2]
[380054317,1755511833067,-250.0,0.0001023,2]
[380054318,1755511833077,-470.0,0.00010247,2]
[380054319,1755511833086,-500.0,0.00010275,2]
[380054320,1755511833096,-150.0,0.0001028,2]
[380054321,1755511833105,-180.70200898,0.00010283,2]
[380054322,1755511833115,-300.0,0.00010291,2]
[380054323,1755511833126,-500.0,0.0001033,2]
[380054324,1755511833136,-500.0,0.00010385,2]
[380054325,1755511833147,-500.0,0.0001044,2]
[380054326,1755511833157,-154.95,0.00010463,2]
[380054327,1755511833167,-500.0,0.00010495,2]
[380054328,1755511833177,-153.707175,0.00010548,2]
[380054329,1755511833187,-500.0,0.0001055,2]
[380054330,1755511833196,-15690.49,0.00010562,2]
[380054331,1755511833206,-300.0,0.00010578,2]
[380054332,1755511833216,-250.0,0.00010578,2]
[380054333,1755511833228,-1000.0,0.00010633,2]
[380054334,1755511833237,-188.0037,0.00010799,2]
[380054335,1755511833247,-239.8138,0.00010799,2]
[380054336,1755511833257,-213.7962,0.00010799,2]
[380054337,1755511833267,-500.0,0.00010877,2]
[380054338,1755511833276,-5626.85082,0.0001089,2]
[380054339,1755511833286,-60340.0647,0.00010899,2]
[380054340,1755511833296,-1034.18,0.000109,2]
[380054341,1755511833305,-549.7786,0.000109,2]
[380054342,1755511833316,-746.4968,0.000109,2]
[380054343,1755511833328,-793.77160202,0.000109,2]
[380054344,1755511833345,-220.92402701,0.000109,2]
[380054345,1755511833361,-1621.2163,0.000109,2]
[380054346,1755511833373,-5626.85082,0.0001091,2]
[380054347,1755511833383,-5626.85082,0.0001094,2]
[380054348,1755511833393,-700.0,0.00010959,2]
[380054349,1755511833402,-150.0,0.00010959,2]
[380054350,1755511833412,-500.0,0.00010973,2]
[380054351,1755511833421,-458.81343577,0.00010973,2]
[380054352,1755511833431,-506.03200363,0.00010973,2]